Workbook

Sheet Лист1
A1: Школа | C1: МБОУ "Зай-Каратайская ООШ" МО "ЛМР" РТ | F1: Утвердил: | G1: должность | H1: директор
A2: Типовое примерное меню приготавливаемых блюд | G2: фамилия | H2: Л.Ш.Ахметова
A3: Возрастная категория | E3: 12 лет и старше | G3: дата | H3: 9 | I3: 1 | J3: 2025
H4: день | I4: месяц | J4: год
A5: Неделя | B5: День недели | C5: Прием пищи | D5: Раздел меню | E5: Блюда | F5: Вес блюда, г | G5: Белки | H5: Жиры | I5: Углеводы | J5: Калорийность | K5: № рецептуры | L5: Цена
A6: 1 | B6: 1 | C6: Завтрак | D6: гор.блюдо | E6: рассольник Ленинградский с куриными фрикадельками со сметаной | F6: 265 | G6: 3.51 | H6: 7.16 | I6: 12.96 | J6: 135.95 | K6: 96\105
D8: гор.напиток | E8: компот из свежих яблок с изюмом | F8: 200 | G8: 0.25 | H8: 0.12 | I8: 28.87 | J8: 118.4 | K8: ттк
D9: хлеб | E9: ржаной | F9: 30 | G9: 1.98 | H9: 0.36 | I9: 11.88 | J9: 59.4 | K9: 134
D10: фрукты
D13: итого | F13: =SUM(F6:F12) -> 495 | G13: =SUM(G6:G12) -> 5.74 | H13: 7.64 | I13: 53.71 | J13: 313.75 | L13: =SUM(L6:L12) -> 0
A14: =A6 -> 1 | B14: =B6 -> 1 | C14: Обед | D14: закуска | E14: Салат из моркови с яблоками | F14: 100 | G14: 1.06 | H14: 4.22 | I14: 8.52 | J14: 84.85 | K14: ттк
D15: 1 блюдо | E15: сосиски отварные | F15: 90 | G15: 10.8 | H15: 13.5 | I15: 0.9 | J15: 169.3 | K15: ттк
D16: 2 блюдо
D17: гарнир | E17: макаронные изделия отварные с маслом сливочным | F17: 155 | G17: 5.7 | H17: 4.3 | I17: 31.99 | J17: 189.3 | K17: 203
D18: напиток | E18: компот из сухофруктов (75С) | F18: 200 | G18: 0.66 | H18: 0.09 | I18: 22.03 | J18: 92.8 | K18: 349
D19: хлеб бел. | E19: пшеничный | F19: 25 | G19: 1.9 | H19: 0.2 | I19: 12.3 | J19: 58.75
D20: хлеб черн. | E20: ржаной | F20: 30 | G20: 1.98 | H20: 0.36 | I20: 11.88 | J20: 59.4 | K20: 134
D23: итого | F23: =SUM(F14:F22) -> 600 | G23: =SUM(G14:G22) -> 22.1 | H23: 22.67 | I23: 87.62 | J23: 654.4 | L23: =SUM(L14:L22) -> 0
A24: =A6 -> 1 | B24: =B6 -> 1 | C24: Итого за день: | F24: =F13+F23 -> 1095 | G24: =G13+G23 -> 27.84 | H24: 30.31 | I24: 141.33 | J24: 968.15 | L24: =L13+L23 -> 0
A25: 1 | B25: 2 | C25: Завтрак | D25: гор.блюдо | E25: суп лапша домашняя с мясом птицы | F25: 260 | G25: 5.65 | H25: 6.1 | I25: 11.62 | J25: 132.55 | K25: 113
D27: гор.напиток | E27: из шиповника | F27: 200 | G27: 0.68 | H27: 0.28 | I27: 10.78 | J27: 48.2 | K27: ттк
D28: хлеб | E28: ржаной | F28: 30 | G28: 1.98 | H28: 0.36 | I28: 11.88 | J28: 59.4 | K28: 134
D29: фрукты
D32: итого | F32: =SUM(F25:F31) -> 490 | G32: =SUM(G25:G31) -> 8.31 | H32: 6.74 | I32: 34.28 | J32: 240.15 | L32: 0
A33: =A25 -> 1 | B33: =B25 -> 2 | C33: Обед | D33: закуска | E33: плоды и ягоды свежие (яблоки) | F33: 100 | G33: 0.4 | H33: 0.4 | I33: 9.8 | J33: 47
D34: 1 блюдо
D35: 2 блюдо
D36: гарнир | E36: сырники из творога с молочной кашей "Дружба" с маслом сливочным | F36: 235 | G36: 15.7 | H36: 16.83 | I36: 41.19 | J36: 376.8 | K36: ттк
D37: напиток | E37: чай с сахаром | F37: 200 | G37: 0.07 | H37: 0.02 | I37: 10 | J37: 40 | K37: 376
D38: хлеб бел.
D39: хлеб черн. | E39: ржаной | F39: 30 | G39: 1.98 | H39: 0.36 | I39: 11.88 | J39: 59.4 | K39: 134
D42: итого | F42: =SUM(F33:F41) -> 565 | G42: =SUM(G33:G41) -> 18.15 | H42: 17.61 | I42: 72.87 | J42: 523.2 | L42: 0
A43: =A25 -> 1 | B43: =B25 -> 2 | C43: Итого за день: | F43: =F32+F42 -> 1055 | G43: =G32+G42 -> 26.46 | H43: 24.35 | I43: 107.15 | J43: 763.35 | L43: 0
A44: 1 | B44: 3 | C44: Завтрак | D44: гор.блюдо | E44: Борщ из свежей капусты с мясными фрикадельками, со сметаной | F44: 265 | G44: 3.93 | H44: 6.84 | I44: 11.19 | J44: 131.46 | K44: 82
D46: гор.напиток | E46: чай с сахаром | F46: 200 | G46: 0.07 | H46: 0.02 | I46: 10 | J46: 40 | K46: 376
D47: хлеб | E47: ржаной | F47: 30 | G47: 1.98 | H47: 0.36 | I47: 11.88 | J47: 59.4 | K47: 134
D48: фрукты
D51: итого | F51: =SUM(F44:F50) -> 495 | G51: =SUM(G44:G50) -> 5.98 | H51: 7.22 | I51: 33.07 | J51: 230.86 | L51: 0
A52: =A44 -> 1 | B52: =B44 -> 3 | C52: Обед | D52: закуска | E52: сыр порционно | F52: 10 | G52: 2.63 | H52: 2.66 | I52: 0 | J52: 34.33 | K52: 15
D53: 1 блюдо | E53: Гуляш из куриной грудки | F53: 100 | G53: 9.94 | H53: 13.83 | I53: 9.9 | J53: 170.39
D54: 2 блюдо
D55: гарнир | E55: каша гречневая рассыпчатая | F55: 180 | G55: 4.52 | H55: 3.75 | I55: 47.66 | J55: 256.8 | K55: 171
D56: напиток | E56: чай с сахаром, с лимоном | F56: 200 | G56: 0.11 | H56: 0.02 | I56: 10.15 | J56: 41.32 | K56: 377
D57: хлеб бел. | E57: пшеничный | F57: 20 | G57: 1.52 | H57: 0.16 | I57: 9.84 | J57: 47
D58: хлеб черн. | E58: ржаной | F58: 40 | G58: 2.54 | H58: 0.48 | I58: 15.84 | J58: 79.2 | K58: 134
D61: итого | F61: =SUM(F52:F60) -> 550 | G61: =SUM(G52:G60) -> 21.26 | H61: 20.9 | I61: 93.39 | J61: 629.04 | L61: 0
A62: =A44 -> 1 | B62: =B44 -> 3 | C62: Итого за день: | F62: =F51+F61 -> 1045 | G62: =G51+G61 -> 27.24 | H62: 28.12 | I62: 126.46 | J62: 859.9 | L62: 0
A63: 1 | B63: 4 | C63: Завтрак | D63: гор.блюдо | E63: суп крестьянский с крупой (пшено) с куриными фрикадельками со сметаной | F63: 265 | G63: 2.98 | H63: 6.99 | I63: 7.07 | J63: 104.95 | K63: 98
D65: гор.напиток | E65: чай с сахаром | F65: 200 | G65: 0.07 | H65: 0.02 | I65: 10 | J65: 40 | K65: 376
D66: хлеб | E66: ржаной | F66: 30 | G66: 1.98 | H66: 0.36 | I66: 11.88 | J66: 59.4 | K66: 134
D67: фрукты
D70: итого | F70: =SUM(F63:F69) -> 495 | G70: =SUM(G63:G69) -> 5.03 | H70: 7.37 | I70: 28.95 | J70: 204.35 | L70: 0
A71: =A63 -> 1 | B71: =B63 -> 4 | C71: Обед | D71: закуска | E71: Свекла отварная дольками | F71: 100 | G71: 1.8 | H71: 0.1 | I71: 9.8 | J71: 48 | K71: ттк
D72: 1 блюдо | E72: котлета из мяса птицы с картофельным пюре с маслом сливочным | F72: 243 | G72: 13.28 | H72: 18.58 | I72: 34.26 | J72: 348.45 | K72: ттк
D73: 2 блюдо
D74: гарнир
D75: напиток | E75: чай с сахаром с яблоком | F75: 200 | G75: 0.11 | H75: 0.06 | I75: 10.98 | J75: 44.7 | K75: 376
D76: хлеб бел. | E76: пшеничный | F76: 20 | G76: 1.52 | H76: 0.16 | I76: 9.84 | J76: 47
D77: хлеб черн. | E77: ржаной | F77: 30 | G77: 1.98 | H77: 0.36 | I77: 11.88 | J77: 59.4 | K77: 134
D80: итого | F80: =SUM(F71:F79) -> 593 | G80: =SUM(G71:G79) -> 18.69 | H80: 19.26 | I80: 76.76 | J80: 547.55 | L80: 0
A81: =A63 -> 1 | B81: =B63 -> 4 | C81: Итого за день: | F81: =F70+F80 -> 1088 | G81: =G70+G80 -> 23.72 | H81: 26.63 | I81: 105.71 | J81: 751.9 | L81: 0
A82: 1 | B82: 5 | C82: Завтрак | D82: гор.блюдо | E82: харчо с мясом птицысо сметаной | F82: 265 | G82: 3.18 | H82: 7.4 | I82: 2.1 | J82: 86.8 | K82: 115
D84: гор.напиток | E84: компот из сухофруктов | F84: 200 | G84: 0.66 | H84: 0.09 | I84: 22.03 | J84: 92.9 | K84: 349
D85: хлеб | E85: ржаной | F85: 30 | G85: 1.98 | H85: 0.36 | I85: 11.88 | J85: 59.4 | K85: 134
D86: фрукты
D89: итого | F89: =SUM(F82:F88) -> 495 | G89: =SUM(G82:G88) -> 5.82 | H89: 7.85 | I89: 36.01 | J89: 239.1 | L89: 0
A90: =A82 -> 1 | B90: =B82 -> 5 | C90: Обед | D90: закуска | E90: сыр порционно | F90: 10 | G90: 2.63 | H90: 2.66 | I90: 0 | J90: 34.33 | K90: 15
D91: 1 блюдо | E91: Тефтели мясные в сметанно- томатном соусе | F91: 100 | G91: 7.284 | H91: 11.94 | I91: 8.36 | J91: 124 | K91: 279
D92: 2 блюдо
D93: гарнир | E93: Макаронные изделия отварные | F93: 200 | G93: 7.36 | H93: 6.02 | I93: 35.26 | J93: 224.6 | K93: 203
D94: напиток | E94: Напиток из свежих фруктов (75С) | F94: 200 | G94: 0.34 | H94: 0.17 | I94: 21.46 | J94: 103.5 | K94: ттк
D95: хлеб бел.
D96: хлеб черн. | E96: ржаной | F96: 40 | G96: 2.64 | H96: 0.48 | I96: 15.84 | J96: 79.2
D99: итого | F99: =SUM(F90:F98) -> 550 | G99: =SUM(G90:G98) -> 20.254 | H99: 21.27 | I99: 80.92 | J99: 565.63 | L99: 0
A100: =A82 -> 1 | B100: =B82 -> 5 | C100: Итого за день: | F100: =F89+F99 -> 1045 | G100: =G89+G99 -> 26.074 | H100: 29.12 | I100: 116.93 | J100: 804.73 | L100: 0
A101: 1 | B101: 6 | C101: Завтрак | D101: гор.блюдо
D103: гор.напиток
D104: хлеб
D105: фрукты
D108: итого | F108: =SUM(F101:F107) -> 0 | G108: =SUM(G101:G107) -> 0 | H108: 0 | I108: 0 | J108: 0 | L108: =SUM(L101:L107) -> 0
A109: =A101 -> 1 | B109: =B101 -> 6 | C109: Обед | D109: закуска | E109: Салат из свежей капусты с морковью | F109: 100 | G109: 1.75 | H109: 4.33 | I109: 8.62 | J109: 90.53 | K109: 47
D110: 1 блюдо | E110: биточки рыбные с рисом отварным рассыпчатым с маслом сливочным | F110: 243 | G110: 16.8 | H110: 17.2 | I110: 53.36 | J110: 416.65 | K110: 234
D111: 2 блюдо
D112: гарнир
D113: напиток | E113: чай с сахаром, с лимоном | F113: 200 | G113: 0.11 | H113: 0.02 | I113: 10.15 | J113: 41.32 | K113: 377
D114: хлеб бел.
D115: хлеб черн. | E115: ржаной | F115: 50 | G115: 3.3 | H115: 0.6 | I115: 19.8 | J115: 99 | K115: 134
D118: итого | F118: =SUM(F109:F117) -> 593 | G118: =SUM(G109:G117) -> 21.96 | H118: 22.15 | I118: 91.93 | J118: 647.5 | L118: =SUM(L109:L117) -> 0
A119: =A101 -> 1 | B119: =B101 -> 6 | C119: Итого за день: | F119: =F108+F118 -> 593 | G119: =G108+G118 -> 21.96 | H119: 22.15 | I119: 91.93 | J119: 647.5 | L119: =L108+L118 -> 0
A120: 2 | B120: 1 | C120: Завтрак | D120: гор.блюдо | E120: суп картофельный с вермишелью с куриными фрикадельками | F120: 260 | G120: 4.05 | H120: 4.16 | I120: 18.25 | J120: 138.85
D122: гор.напиток | E122: Чай с сахаром с лимоном | F122: 200 | G122: 0.13 | H122: 0.02 | I122: 10.2 | J122: 42
D123: хлеб | E123: ржаной | F123: 30 | G123: 1.98 | H123: 0.36 | I123: 11.88 | J123: 59.4 | K123: 134
D124: фрукты
D127: итого | F127: =SUM(F120:F126) -> 490 | G127: =SUM(G120:G126) -> 6.16 | H127: 4.54 | I127: 40.33 | J127: 240.25 | L127: =SUM(L120:L126) -> 0
A128: =A120 -> 2 | B128: =B120 -> 1 | C128: Обед | D128: закуска
D129: 1 блюдо | E129: Сырники из творога с кашей пшеной молочной с маслом сливочным | F129: 283 | G129: 17.9 | H129: 21.21 | I129: 47.96 | J129: 442.6 | K129: ттк
D130: 2 блюдо
D131: гарнир
D132: напиток | E132: чай витаминный с шиповником | F132: 200 | G132: 0.24 | H132: 0.09 | I132: 12.43 | J132: 54.2 | K132: 376
D133: хлеб бел. | E133: Пшеничный | F133: 30 | G133: 2.28 | H133: 0.24 | I133: 14.76 | J133: 70.5
D134: хлеб черн. | E134: ржаной | F134: 40 | G134: 2.64 | H134: 0.48 | I134: 15.84 | J134: 79.2 | K134: 134
D137: итого | F137: =SUM(F128:F136) -> 553 | G137: =SUM(G128:G136) -> 23.06 | H137: 22.02 | I137: 90.99 | J137: 646.5 | L137: =SUM(L128:L136) -> 0
A138: =A120 -> 2 | B138: =B120 -> 1 | C138: Итого за день: | F138: =F127+F137 -> 1043 | G138: =G127+G137 -> 29.22 | H138: 26.56 | I138: 131.32 | J138: 886.75 | L138: 0
A139: 2 | B139: 2 | C139: Завтрак | D139: гор.блюдо | E139: щи из свежей капусты с картофелем, на мясном бульоне ,со сметаной | F139: 255 | G139: 2.7 | H139: 5.9 | I139: 8.08 | J139: 102.85
D141: гор.напиток | E141: Компот из сухофруктов | F141: 200 | G141: 0.66 | H141: 0.09 | I141: 22.03 | J141: 92.9
D142: хлеб | E142: ржаной | F142: 30 | G142: 1.98 | H142: 0.36 | I142: 11.88 | J142: 59.4 | K142: 134
D143: фрукты
D146: итого | F146: =SUM(F139:F145) -> 485 | G146: =SUM(G139:G145) -> 5.34 | H146: 6.35 | I146: 41.99 | J146: 255.15 | L146: =SUM(L139:L145) -> 0
A147: =A139 -> 2 | B147: =B139 -> 2 | C147: Обед | D147: закуска | E147: плоды и ягоды свежие (яблоки) | F147: 100 | G147: 0.4 | H147: 0.4 | I147: 9.8 | J147: 47
D148: 1 блюдо
D149: 2 блюдо
D150: гарнир | E150: Плов из куриной грудки с рисовой крупой | F150: 250 | G150: 18.97 | H150: 23.12 | I150: 51.79 | J150: 509.8 | K150: 265
D151: напиток | E151: чай с сахаром | F151: 200 | G151: 0.07 | H151: 0.02 | I151: 10 | J151: 40 | K151: 376
D152: хлеб бел. | E152: Пшеничный | F152: 20 | G152: 1.52 | H152: 0.16 | I152: 9.84 | J152: 47
D153: хлеб черн. | E153: ржаной | F153: 30 | G153: 1.98 | H153: 0.36 | I153: 11.88 | J153: 59.4 | K153: 134
D156: итого | F156: =SUM(F147:F155) -> 600 | G156: =SUM(G147:G155) -> 22.94 | H156: 24.06 | I156: 93.31 | J156: 703.2 | L156: =SUM(L147:L155) -> 0
A157: =A139 -> 2 | B157: =B139 -> 2 | C157: Итого за день: | F157: =F146+F156 -> 1085 | G157: =G146+G156 -> 28.28 | H157: 30.41 | I157: 135.3 | J157: 958.35 | L157: 0
A158: 2 | B158: 3 | C158: Завтрак | D158: гор.блюдо | E158: суп с рисовой крупой и мясными фрикадельками | F158: 260 | G158: 2.57 | H158: 5.97 | I158: 1.8 | J158: 70.86
D160: гор.напиток | E160: из шиповника | F160: 200 | G160: 0.68 | H160: 0.28 | I160: 10.78 | J160: 48.2 | K160: ттк
D161: хлеб | E161: ржаной | F161: 30 | G161: 1.98 | H161: 0.36 | I161: 11.88 | J161: 59.4 | K161: 134
D162: фрукты
D165: итого | F165: =SUM(F158:F164) -> 490 | G165: =SUM(G158:G164) -> 5.23 | H165: 6.61 | I165: 24.46 | J165: 178.46 | L165: =SUM(L158:L164) -> 0
A166: =A158 -> 2 | B166: =B158 -> 3 | C166: Обед | D166: закуска
D167: 1 блюдо | E167: рыба тушеная в томате с овощами | F167: 100 | G167: 9.05 | H167: 6.09 | I167: 3.8 | J167: 105 | K167: 229
D168: 2 блюдо
D169: гарнир | E169: пюре картофельное | F169: 180 | G169: 3.68 | H169: 5.76 | I169: 24.53 | J169: 164.7 | K169: 312
D170: напиток | E170: Компот из свежих яблок (75С) | F170: 200 | G170: 0.16 | H170: 0.16 | I170: 17.9 | J170: 74.6 | K170: 342
D171: хлеб бел. | E171: Пшеничный | F171: 30 | G171: 2.28 | H171: 0.24 | I171: 14.76 | J171: 70.5
D172: хлеб черн. | E172: ржаной | F172: 40 | G172: 2.64 | H172: 0.48 | I172: 15.84 | J172: 79.2 | K172: 134
D175: итого | F175: =SUM(F166:F174) -> 550 | G175: =SUM(G166:G174) -> 17.81 | H175: 12.73 | I175: 76.83 | J175: 494 | L175: =SUM(L166:L174) -> 0
A176: =A158 -> 2 | B176: =B158 -> 3 | C176: Итого за день: | F176: =F165+F175 -> 1040 | G176: =G165+G175 -> 23.04 | H176: 19.34 | I176: 101.29 | J176: 672.46 | L176: 0
A177: 2 | B177: 4 | C177: Завтрак | D177: гор.блюдо | E177: суп картофельный с горохом, на курином бульоне | F177: 250 | G177: 6.29 | H177: 5.47 | I177: 16.54 | J177: 153.25
D179: гор.напиток | E179: чай с сахаром | F179: 200 | G179: 0.07 | H179: 0.02 | I179: 10 | J179: 40 | K179: 376
D180: хлеб | E180: ржаной | F180: 30 | G180: 1.98 | H180: 0.36 | I180: 11.88 | J180: 59.4 | K180: 134
D181: фрукты
D184: итого | F184: =SUM(F177:F183) -> 480 | G184: =SUM(G177:G183) -> 8.34 | H184: 5.85 | I184: 38.42 | J184: 252.65 | L184: =SUM(L177:L183) -> 0
A185: =A177 -> 2 | B185: =B177 -> 4 | C185: Обед | D185: закуска
D186: 1 блюдо | E186: тефтели куриные с гречневой крупой в сметанно-томатном соусе | F186: 100 | G186: 3.17 | H186: 5.19 | I186: 9.85 | J186: 118.01 | K186: ттк
D187: 2 блюдо
D188: гарнир | E188: Макаронные изделия отварные | F188: 200 | G188: 7.36 | H188: 6.02 | I188: 35.26 | J188: 224.6 | K188: 203
D189: напиток | E189: Чай "Витаминный" с шиповником | F189: 200 | G189: 0.24 | H189: 0.09 | I189: 12.43 | J189: 54.2 | K189: 376
D190: хлеб бел. | E190: пшеничный | F190: 30 | G190: 2.28 | H190: 0.24 | I190: 14.76 | J190: 70.5
D191: хлеб черн. | E191: ржаной | F191: 30 | G191: 1.98 | H191: 0.36 | I191: 11.88 | J191: 59.4 | K191: 134
D194: итого | F194: =SUM(F185:F193) -> 560 | G194: =SUM(G185:G193) -> 15.03 | H194: 11.9 | I194: 84.18 | J194: 526.71 | L194: =SUM(L185:L193) -> 0
A195: =A177 -> 2 | B195: =B177 -> 4 | C195: Итого за день: | F195: =F184+F194 -> 1040 | G195: =G184+G194 -> 23.37 | H195: 17.75 | I195: 122.6 | J195: 779.36 | L195: 0
A196: 2 | B196: 5 | C196: Завтрак | D196: гор.блюдо | E196: рассольник домашний с мясными фрикадельками | F196: 260 | G196: 4.09 | H196: 6.26 | I196: 12.76 | J196: 134.11
D198: гор.напиток | E198: Компот из изюма и урюка | F198: 200 | G198: 0.55 | H198: 0.07 | I198: 18.89 | J198: 79.3 | K198: ттк
D199: хлеб | E199: ржаной | F199: 30 | G199: 1.98 | H199: 0.36 | I199: 11.88 | J199: 59.4 | K199: 134
D200: фрукты
D203: итого | F203: =SUM(F196:F202) -> 490 | G203: =SUM(G196:G202) -> 6.62 | H203: 6.69 | I203: 43.53 | J203: 272.81 | L203: =SUM(L196:L202) -> 0
A204: =A196 -> 2 | B204: =B196 -> 5 | C204: Обед | D204: закуска | E204: плоды и ягоды свежие (яблоки) | F204: 100 | G204: 0.4 | H204: 0.4 | I204: 9.8 | J204: 47
D205: 1 блюдо
D206: 2 блюдо
D207: гарнир | E207: Овощи тушеные с мясом | F207: 200 | G207: 12.48 | H207: 15.58 | I207: 19.34 | J207: 271.5 | K207: 343
D208: напиток | E208: Компот из сухофруктов | F208: 200 | G208: 0.66 | H208: 0.09 | I208: 22.03 | J208: 92.9
D209: хлеб бел. | E209: пшеничный | F209: 30 | G209: 2.28 | H209: 0.24 | I209: 14.76 | J209: 70.5
D210: хлеб черн. | E210: ржаной | F210: 30 | G210: 1.98 | H210: 0.36 | I210: 11.88 | J210: 59.4 | K210: 134
D213: итого | F213: =SUM(F204:F212) -> 560 | G213: =SUM(G204:G212) -> 17.8 | H213: 16.67 | I213: 77.81 | J213: 541.3 | L213: =SUM(L204:L212) -> 0
A214: =A196 -> 2 | B214: =B196 -> 5 | C214: Итого за день: | F214: =F203+F213 -> 1050 | G214: =G203+G213 -> 24.42 | H214: 23.36 | I214: 121.34 | J214: 814.11 | L214: =L203+L213 -> 0
A215: 2 | B215: 6 | C215: Завтрак | D215: гор.блюдо
D217: гор.напиток
D218: хлеб
D219: фрукты
D222: итого | F222: =SUM(F215:F221) -> 0 | G222: =SUM(G215:G221) -> 0 | H222: 0 | I222: 0 | J222: 0 | L222: =SUM(L215:L221) -> 0
A223: =A215 -> 2 | B223: =B215 -> 6 | C223: Обед | D223: закуска | E223: Салат из свежей капусты с морковью | F223: 100 | G223: 1.75 | H223: 4.33 | I223: 8.62 | J223: 90.53 | K223: 47
D224: 1 блюдо | E224: Котлеты "Аппетитные" с кашей гречневой рассыпчатой с маслом сливочным | F224: 228 | G224: 15.16 | H224: 16.19 | I224: 44.53 | J224: 386.75 | K224: ттк
D225: 2 блюдо
D226: гарнир
D227: напиток | E227: Чай с сахаром с лимоном | F227: 200 | G227: 0.13 | H227: 0.02 | I227: 10.2 | J227: 42
D228: хлеб бел.
D229: хлеб черн. | E229: ржаной | F229: 25 | G229: 1.65 | H229: 0.3 | I229: 9.9 | J229: 49.5
D232: итого | F232: =SUM(F223:F231) -> 553 | G232: =SUM(G223:G231) -> 18.69 | H232: 20.84 | I232: 73.25 | J232: 568.78 | L232: =SUM(L223:L231) -> 0
A233: =A215 -> 2 | B233: =B215 -> 6 | C233: Итого за день: | F233: =F222+F232 -> 553 | G233: =G222+G232 -> 18.69 | H233: 20.84 | I233: 73.25 | J233: 568.78 | L233: =L222+L232 -> 0
C234: Среднее значение за период: | F234: =(F24+F43+F62+F81+F100+F119+F138+F157+F176+F195+F214+F233)/(IF(F24=0,0,1)+IF(F43=0,0,1)+IF(F62=0,0,1)+IF(F81=0,0,1)+IF(F100=0,0,1)+IF(F119=0,0,1)+IF(F138=0,0,1)+IF(F157=0,0,1)+IF(F176=0,0,1)+IF(F195=0,0,1)+IF(F214=0,0,1)+IF(F233=0,0,1)) -> 977.6666667 | G234: =(G24+G43+G62+G81+G100+G119+G138+G157+G176+G195+G214+G233)/(IF(G24=0,0,1)+IF(G43=0,0,1)+IF(G62=0,0,1)+IF(G81=0,0,1)+IF(G100=0,0,1)+IF(G119=0,0,1)+IF(G138=0,0,1)+IF(G157=0,0,1)+IF(G176=0,0,1)+IF(G195=0,0,1)+IF(G214=0,0,1)+IF(G233=0,0,1)) -> 25.02616667 | H234: 24.91166667 | I234: =(I24+I43+I62+I81+I100+I119+I138+I157+I176+I195+I214+I233)/(IF(I24=0,0,1)+IF(I43=0,0,1)+IF(I62=0,0,1)+IF(I81=0,0,1)+IF(I100=0,0,1)+IF(I119=0,0,1)+IF(I138=0,0,1)+IF(I157=0,0,1)+IF(I176=0,0,1)+IF(I195=0,0,1)+IF(I214=0,0,1)+IF(I233=0,0,1)) -> 114.5508333 | J234: 789.6116667
